[Event "Titled Tuesday Blitz August 08 Early 2023"]
[White "Lesbekova, Assel"]
[Black "Maluco_do_Natal_00"]
[WhiteFideId "13713248"]
[WhiteElo "2327"]
[BlackElo "2065"]
[Result "1-0"]
[Round "3"]
[TimeControl "180+1"]
[Date "2023.08.08"]
[WhiteClock "0:02:05"]
[BlackClock "0:00:12"]
[Board "260"]

1. e4 {[%clk 0:02:37]}  c5 {[%clk 0:02:24]} 2. Nf3 {[%clk 0:02:37]}  Nc6 {[%clk 0:02:23]} 3. Bb5 {[%clk 0:02:37]}  e6 {[%clk 0:02:23]} 4. O-O {[%clk 0:02:34]}  Nge7 {[%clk 0:02:22]} 5. Re1 {[%clk 0:02:34]}  a6 {[%clk 0:02:22]} 6. Bf1 {[%clk 0:02:34]}  e5 {[%clk 0:02:17]} 7. c3 {[%clk 0:02:33]}  Ng6 {[%clk 0:02:12]} 8. d4 {[%clk 0:02:33]}  cxd4 {[%clk 0:02:11]} 9. cxd4 {[%clk 0:02:34]}  d6 {[%clk 0:02:11]} 10. Nc3 {[%clk 0:02:32]}  Be7 {[%clk 0:01:55]} 11. Be3 {[%clk 0:02:26]}  O-O {[%clk 0:01:53]} 12. Rc1 {[%clk 0:02:25]}  Re8 {[%clk 0:01:46]} 13. Nd5 {[%clk 0:02:23]}  Bf8 {[%clk 0:01:46]} 14. dxe5 {[%clk 0:02:24]}  Ngxe5 {[%clk 0:01:45]} 15. Bb6 {[%clk 0:02:21]}  Qd7 {[%clk 0:01:13]} 16. Nc7 {[%clk 0:02:19]}  Qe7 {[%clk 0:00:54]} 17. Nxa8 {[%clk 0:02:16]}  Bg4 {[%clk 0:00:54]} 18. Nc7 {[%clk 0:02:10]}  Bxf3 {[%clk 0:00:52]} 19. gxf3 {[%clk 0:02:10]}  Qg5+ {[%clk 0:00:38]} 20. Bg2 {[%clk 0:02:09]}  Ng6 {[%clk 0:00:12]} 21. Be3 {[%clk 0:02:05]} 1-0


[Site "https://www.chess.com"]

[Event "Titled Tuesday Blitz August 08 Early 2023"]
[White "Nikulina, Alena"]
[Black "Spichkin, Alexander"]
[WhiteFideId "4172051"]
[BlackFideId "4144074"]
[WhiteElo "2055"]
[BlackElo "2324"]
[Result "0-1"]
[Round "3"]
[TimeControl "180+1"]
[Date "2023.08.08"]
[WhiteClock "0:00:03"]
[BlackClock "0:01:42"]
[Board "262"]

1. e4 {[%clk 0:03:00]}  e5 {[%clk 0:03:00]} 2. Nf3 {[%clk 0:03:00]}  d5 {[%clk 0:03:00]} 3. Nxe5 {[%clk 0:02:46]}  Bd6 {[%clk 0:02:58]} 4. d4 {[%clk 0:02:45]}  dxe4 {[%clk 0:02:57]} 5. Nc4 {[%clk 0:02:24]}  Nf6 {[%clk 0:02:53]} 6. Be2 {[%clk 0:02:20]}  Nc6 {[%clk 0:02:49]} 7. Nxd6+ {[%clk 0:02:13]}  Qxd6 {[%clk 0:02:49]} 8. c3 {[%clk 0:02:13]}  Be6 {[%clk 0:02:48]} 9. Nd2 {[%clk 0:02:11]}  O-O-O {[%clk 0:02:49]} 10. Nc4 {[%clk 0:02:09]}  Bxc4 {[%clk 0:02:49]} 11. Bxc4 {[%clk 0:02:07]}  Nd5 {[%clk 0:02:45]} 12. O-O {[%clk 0:01:44]}  f5 {[%clk 0:02:43]} 13. Bxd5 {[%clk 0:01:40]}  Qxd5 {[%clk 0:02:42]} 14. b4 {[%clk 0:01:40]}  a6 {[%clk 0:02:41]} 15. a4 {[%clk 0:01:40]}  h5 {[%clk 0:02:41]} 16. Bf4 {[%clk 0:01:31]}  Rhg8 {[%clk 0:02:40]} 17. h4 {[%clk 0:01:31]}  g6 {[%clk 0:02:37]} 18. Qe2 {[%clk 0:00:58]}  Rd7 {[%clk 0:02:30]} 19. b5 {[%clk 0:00:58]}  axb5 {[%clk 0:02:27]} 20. axb5 {[%clk 0:00:58]}  Nb8 {[%clk 0:02:24]} 21. Be5 {[%clk 0:00:45]}  g5 {[%clk 0:02:23]} 22. c4 {[%clk 0:00:45]}  Qe6 {[%clk 0:02:20]} 23. hxg5 {[%clk 0:00:41]}  Rxg5 {[%clk 0:02:19]} 24. Ra8 {[%clk 0:00:37]}  Qg6 {[%clk 0:02:11]} 25. g3 {[%clk 0:00:29]}  h4 {[%clk 0:02:11]} 26. Kg2 {[%clk 0:00:29]}  hxg3 {[%clk 0:02:06]} 27. fxg3 {[%clk 0:00:28]}  Rh5 {[%clk 0:01:54]} 28. Qa2 {[%clk 0:00:22]}  Rdh7 {[%clk 0:01:51]} 29. Rf2 {[%clk 0:00:10]}  e3 {[%clk 0:01:45]} 30. Re2 {[%clk 0:00:09]}  f4 {[%clk 0:01:44]} 31. Qa7 {[%clk 0:00:07]}  Qe4+ {[%clk 0:01:43]} 32. Kg1 {[%clk 0:00:03]}  Rh1# {[%clk 0:01:42]} 0-1


[Site "https://www.chess.com"]

[Event "Titled Tuesday Blitz August 08 Early 2023"]
[White "Rodriguez Santiago, Jaime"]
[Black "Osiecki, Stanislaw"]
[WhiteFideId "3100898"]
[BlackFideId "1102990"]
[WhiteElo "2324"]
[BlackElo "2009"]
[Result "1-0"]
[Round "3"]
[TimeControl "180+1"]
[Date "2023.08.08"]
[WhiteClock "0:00:16"]
[BlackClock "0:00:11"]
[Board "263"]

1. c4 {[%clk 0:03:00]}  Nf6 {[%clk 0:02:50]} 2. Nc3 {[%clk 0:03:00]}  d6 {[%clk 0:02:45]} 3. g3 {[%clk 0:03:01]}  e5 {[%clk 0:02:45]} 4. Bg2 {[%clk 0:03:01]}  g6 {[%clk 0:02:45]} 5. e4 {[%clk 0:03:01]}  Bg7 {[%clk 0:02:46]} 6. Nge2 {[%clk 0:03:00]}  O-O {[%clk 0:02:47]} 7. d3 {[%clk 0:03:01]}  c6 {[%clk 0:02:46]} 8. O-O {[%clk 0:03:00]}  a5 {[%clk 0:02:46]} 9. h3 {[%clk 0:03:00]}  Nbd7 {[%clk 0:02:47]} 10. f4 {[%clk 0:02:58]}  exf4 {[%clk 0:02:46]} 11. gxf4 {[%clk 0:02:58]}  Nc5 {[%clk 0:02:46]} 12. Be3 {[%clk 0:02:56]}  b6 {[%clk 0:02:45]} 13. d4 {[%clk 0:02:52]}  Ne6 {[%clk 0:02:43]} 14. Qd2 {[%clk 0:02:45]}  Bd7 {[%clk 0:02:40]} 15. f5 {[%clk 0:02:40]}  Nc7 {[%clk 0:02:35]} 16. Bh6 {[%clk 0:02:38]}  Nh5 {[%clk 0:02:23]} 17. Bxg7 {[%clk 0:02:36]}  Kxg7 {[%clk 0:02:19]} 18. Rf2 {[%clk 0:02:22]}  Qh4 {[%clk 0:02:17]} 19. Raf1 {[%clk 0:02:19]}  f6 {[%clk 0:02:08]} 20. fxg6 {[%clk 0:01:59]}  hxg6 {[%clk 0:02:08]} 21. e5 {[%clk 0:01:58]}  fxe5 {[%clk 0:02:02]} 22. dxe5 {[%clk 0:01:55]}  Rxf2 {[%clk 0:01:55]} 23. Rxf2 {[%clk 0:01:53]}  Qxc4 {[%clk 0:01:40]} 24. Qxd6 {[%clk 0:01:45]}  Qe6 {[%clk 0:01:18]} 25. Qxc7 {[%clk 0:01:43]}  Rc8 {[%clk 0:01:17]} 26. Qxb6 {[%clk 0:01:43]}  Qxe5 {[%clk 0:01:17]} 27. Qd4 {[%clk 0:01:41]}  Qxd4 {[%clk 0:01:16]} 28. Nxd4 {[%clk 0:01:42]}  c5 {[%clk 0:01:15]} 29. Ndb5 {[%clk 0:01:42]}  Bxb5 {[%clk 0:01:10]} 30. Nxb5 {[%clk 0:01:41]}  Ng3 {[%clk 0:01:10]} 31. a4 {[%clk 0:01:36]}  Nf5 {[%clk 0:01:09]} 32. Rd2 {[%clk 0:01:23]}  Ne3 {[%clk 0:01:08]} 33. Rd7+ {[%clk 0:01:20]}  Kh6 {[%clk 0:01:08]} 34. Ra7 {[%clk 0:01:19]}  Nc4 {[%clk 0:01:04]} 35. b3 {[%clk 0:01:17]}  Nd2 {[%clk 0:01:04]} 36. Bd5 {[%clk 0:01:16]}  Rd8 {[%clk 0:01:03]} 37. Nc3 {[%clk 0:01:13]}  Rb8 {[%clk 0:00:59]} 38. Rxa5 {[%clk 0:00:53]}  Nxb3 {[%clk 0:00:56]} 39. Bxb3 {[%clk 0:00:53]}  Rxb3 {[%clk 0:00:56]} 40. Rxc5 {[%clk 0:00:54]}  Ra3 {[%clk 0:00:55]} 41. a5 {[%clk 0:00:53]}  g5 {[%clk 0:00:55]} 42. Kg2 {[%clk 0:00:53]}  Kh5 {[%clk 0:00:53]} 43. Ne4 {[%clk 0:00:49]}  Ra2+ {[%clk 0:00:52]} 44. Kg3 {[%clk 0:00:46]}  Ra3+ {[%clk 0:00:51]} 45. Kg2 {[%clk 0:00:47]}  Ra2+ {[%clk 0:00:51]} 46. Kf1 {[%clk 0:00:45]}  Kh4 {[%clk 0:00:50]} 47. Nxg5 {[%clk 0:00:45]}  Kg3 {[%clk 0:00:39]} 48. Ke1 {[%clk 0:00:41]}  Kf4 {[%clk 0:00:28]} 49. Kd1 {[%clk 0:00:39]}  Ke3 {[%clk 0:00:28]} 50. Kc1 {[%clk 0:00:37]}  Kd4 {[%clk 0:00:27]} 51. Rf5 {[%clk 0:00:36]}  Rh2 {[%clk 0:00:24]} 52. Kb1 {[%clk 0:00:31]}  Kc3 {[%clk 0:00:23]} 53. Rb5 {[%clk 0:00:29]}  Kc4 {[%clk 0:00:22]} 54. Rf5 {[%clk 0:00:29]}  Kb3 {[%clk 0:00:22]} 55. Rf3+ {[%clk 0:00:27]}  Kb4 {[%clk 0:00:22]} 56. a6 {[%clk 0:00:26]}  Rg2 {[%clk 0:00:18]} 57. a7 {[%clk 0:00:23]}  Rxg5 {[%clk 0:00:18]} 58. a8=Q {[%clk 0:00:22]}  Rb5 {[%clk 0:00:17]} 59. Kc2 {[%clk 0:00:19]}  Rc5+ {[%clk 0:00:17]} 60. Kd2 {[%clk 0:00:20]}  Kc4 {[%clk 0:00:16]} 61. Qa4+ {[%clk 0:00:19]}  Kd5 {[%clk 0:00:16]} 62. Rd3+ {[%clk 0:00:19]}  Ke6 {[%clk 0:00:15]} 63. Qe8+ {[%clk 0:00:20]}  Kf5 {[%clk 0:00:14]} 64. Rf3+ {[%clk 0:00:20]}  Kg5 {[%clk 0:00:13]} 65. Qg8+ {[%clk 0:00:19]}  Kh6 {[%clk 0:00:12]} 66. Rf6+ {[%clk 0:00:18]}  Kh5 {[%clk 0:00:11]} 67. Qg4# {[%clk 0:00:16]} 1-0


[Site "https://www.chess.com"]

[Event "Titled Tuesday Blitz August 08 Early 2023"]
[White "Vasques, Antonio Pedro Freixial"]
[Black "Wisniowski, Natalie"]
[WhiteFideId "1908332"]
[BlackFideId "30929261"]
[WhiteElo "2317"]
[BlackElo "2001"]
[Result "1-0"]
[Round "3"]
[TimeControl "180+1"]
[Date "2023.08.08"]
[WhiteClock "0:00:11"]
[BlackClock "0:00:00"]
[Board "264"]

1. Nf3 {[%clk 0:02:50]}  d5 {[%clk 0:02:59]} 2. g3 {[%clk 0:02:50]}  c5 {[%clk 0:02:40]} 3. Bg2 {[%clk 0:02:49]}  Nc6 {[%clk 0:02:40]} 4. a3 {[%clk 0:02:45]}  Nf6 {[%clk 0:02:34]} 5. O-O {[%clk 0:02:42]}  Bg4 {[%clk 0:02:24]} 6. c4 {[%clk 0:02:40]}  e5 {[%clk 0:02:12]} 7. cxd5 {[%clk 0:02:19]}  Nxd5 {[%clk 0:02:11]} 8. Nc3 {[%clk 0:02:19]}  Nf6 {[%clk 0:02:01]} 9. b4 {[%clk 0:02:08]}  Bd6 {[%clk 0:01:45]} 10. Qa4 {[%clk 0:01:48]}  O-O {[%clk 0:01:39]} 11. Bb2 {[%clk 0:01:41]}  cxb4 {[%clk 0:01:37]} 12. axb4 {[%clk 0:01:41]}  Nxb4 {[%clk 0:01:23]} 13. Nxe5 {[%clk 0:01:30]}  Bxe5 {[%clk 0:01:20]} 14. Qxb4 {[%clk 0:01:30]}  Qxd2 {[%clk 0:00:45]} 15. Rfd1 {[%clk 0:01:15]}  Qh6 {[%clk 0:00:31]} 16. Ra5 {[%clk 0:00:42]}  Bc7 {[%clk 0:00:23]} 17. Rb5 {[%clk 0:00:25]}  Bb6 {[%clk 0:00:21]} 18. Bc1 {[%clk 0:00:24]}  Qg6 {[%clk 0:00:18]} 19. Rg5 {[%clk 0:00:19]}  Qc2 {[%clk 0:00:13]} 20. Qb2 {[%clk 0:00:12]}  Qxb2 {[%clk 0:00:10]} 21. Bxb2 {[%clk 0:00:13]}  Be6 {[%clk 0:00:09]} 22. Ne4 {[%clk 0:00:12]}  Nxe4 {[%clk 0:00:02]} 23. Rxg7+ {[%clk 0:00:13]}  Kh8 {[%clk 0:00:00]} 24. Bxe4 {[%clk 0:00:11]} 1-0


[Site "https://www.chess.com"]

[Event "Titled Tuesday Blitz August 08 Early 2023"]
[White "Dong Khanh Linh"]
[Black "Castillo Pena, Patricia Evarista"]
[WhiteFideId "12403040"]
[BlackFideId "6412106"]
[WhiteElo "2314"]
[BlackElo "1939"]
[Result "1-0"]
[Round "3"]
[TimeControl "180+1"]
[Date "2023.08.08"]
[WhiteClock "0:00:43"]
[BlackClock "0:00:00"]
[Board "267"]

1. d4 {[%clk 0:03:00]}  d5 {[%clk 0:03:00]} 2. Nf3 {[%clk 0:03:00]}  Nf6 {[%clk 0:02:59]} 3. e3 {[%clk 0:03:00]}  c6 {[%clk 0:02:56]} 4. c4 {[%clk 0:02:57]}  e6 {[%clk 0:02:56]} 5. Nc3 {[%clk 0:02:57]}  Nbd7 {[%clk 0:02:56]} 6. Bd3 {[%clk 0:02:57]}  dxc4 {[%clk 0:02:56]} 7. Bxc4 {[%clk 0:02:56]}  b5 {[%clk 0:02:57]} 8. Bd3 {[%clk 0:02:56]}  Bb7 {[%clk 0:02:56]} 9. O-O {[%clk 0:02:56]}  a6 {[%clk 0:02:57]} 10. a3 {[%clk 0:02:44]}  c5 {[%clk 0:02:56]} 11. e4 {[%clk 0:02:40]}  cxd4 {[%clk 0:02:47]} 12. Nxd4 {[%clk 0:02:39]}  Nc5 {[%clk 0:02:33]} 13. e5 {[%clk 0:02:19]}  Nxd3 {[%clk 0:02:24]} 14. Qxd3 {[%clk 0:02:18]}  Nd7 {[%clk 0:02:02]} 15. Qg3 {[%clk 0:01:58]}  Qc7 {[%clk 0:01:51]} 16. Bf4 {[%clk 0:01:55]}  g6 {[%clk 0:00:48]} 17. Rac1 {[%clk 0:01:53]}  Qb6 {[%clk 0:00:47]} 18. Rfd1 {[%clk 0:01:45]}  Bg7 {[%clk 0:00:40]} 19. h4 {[%clk 0:01:39]}  Rd8 {[%clk 0:00:36]} 20. Nf3 {[%clk 0:01:10]}  h6 {[%clk 0:00:29]} 21. Rd6 {[%clk 0:01:08]}  Qa7 {[%clk 0:00:19]} 22. Rcd1 {[%clk 0:01:07]}  Bc8 {[%clk 0:00:12]} 23. h5 {[%clk 0:01:06]}  g5 {[%clk 0:00:12]} 24. Bxg5 {[%clk 0:01:03]}  hxg5 {[%clk 0:00:13]} 25. Qxg5 {[%clk 0:00:53]}  Bf8 {[%clk 0:00:12]} 26. Ne4 {[%clk 0:00:52]}  Be7 {[%clk 0:00:06]} 27. Qg7 {[%clk 0:00:47]}  Rf8 {[%clk 0:00:04]} 28. h6 {[%clk 0:00:45]}  Bxd6 {[%clk 0:00:02]} 29. Nxd6+ {[%clk 0:00:43]}  Ke7 {[%clk 0:00:00]} 30. Qg5+ {[%clk 0:00:43]} 1-0


[Site "https://www.chess.com"]

[Event "Titled Tuesday Blitz August 08 Early 2023"]
[White "Fajdetic, Hrvoje"]
[Black "Skiadopoulos, Nikolaos"]
[WhiteFideId "14501945"]
[BlackFideId "4200772"]
[WhiteElo "2298"]
[BlackElo "1879"]
[Result "1-0"]
[Round "3"]
[TimeControl "180+1"]
[Date "2023.08.08"]
[WhiteClock "0:00:19"]
[BlackClock "0:00:00"]
[Board "272"]

1. f4 {[%clk 0:02:56]}  c5 {[%clk 0:02:56]} 2. e4 {[%clk 0:02:56]}  d5 {[%clk 0:02:55]} 3. e5 {[%clk 0:02:55]}  Nc6 {[%clk 0:02:53]} 4. Nf3 {[%clk 0:02:55]}  a6 {[%clk 0:02:52]} 5. a4 {[%clk 0:02:54]}  Bg4 {[%clk 0:02:51]} 6. Be2 {[%clk 0:02:54]}  Bxf3 {[%clk 0:02:50]} 7. Bxf3 {[%clk 0:02:54]}  e6 {[%clk 0:02:50]} 8. c3 {[%clk 0:02:54]}  Nge7 {[%clk 0:02:46]} 9. O-O {[%clk 0:02:50]}  Nf5 {[%clk 0:02:45]} 10. Na3 {[%clk 0:02:42]}  Rc8 {[%clk 0:02:44]} 11. Nc2 {[%clk 0:02:41]}  Be7 {[%clk 0:02:38]} 12. d3 {[%clk 0:02:34]}  O-O {[%clk 0:02:32]} 13. Ne3 {[%clk 0:02:25]}  Nxe3 {[%clk 0:02:28]} 14. Bxe3 {[%clk 0:02:26]}  d4 {[%clk 0:02:28]} 15. Bf2 {[%clk 0:02:22]}  dxc3 {[%clk 0:02:18]} 16. bxc3 {[%clk 0:02:23]}  Qd7 {[%clk 0:02:17]} 17. Qe2 {[%clk 0:02:16]}  Rfd8 {[%clk 0:02:13]} 18. Be4 {[%clk 0:02:16]}  Na5 {[%clk 0:02:00]} 19. Be3 {[%clk 0:02:02]}  g6 {[%clk 0:01:57]} 20. g3 {[%clk 0:01:55]}  Bf8 {[%clk 0:01:29]} 21. h4 {[%clk 0:01:55]}  h5 {[%clk 0:01:27]} 22. g4 {[%clk 0:01:54]}  hxg4 {[%clk 0:01:26]} 23. Qxg4 {[%clk 0:01:54]}  Bg7 {[%clk 0:00:55]} 24. h5 {[%clk 0:01:51]}  gxh5 {[%clk 0:00:53]} 25. Qxh5 {[%clk 0:01:48]}  Kf8 {[%clk 0:00:53]} 26. Ra2 {[%clk 0:00:56]}  Ke7 {[%clk 0:00:44]} 27. Qg5+ {[%clk 0:00:45]}  Kf8 {[%clk 0:00:35]} 28. Rg2 {[%clk 0:00:37]}  Bh8 {[%clk 0:00:30]} 29. f5 {[%clk 0:00:30]}  Bxe5 {[%clk 0:00:14]} 30. f6 {[%clk 0:00:30]}  Bxf6 {[%clk 0:00:04]} 31. Qxf6 {[%clk 0:00:28]}  Qe7 {[%clk 0:00:01]} 32. Rg8+ {[%clk 0:00:19]}  Kxg8 {[%clk 0:00:00]} 33. Qxe7 {[%clk 0:00:19]} 1-0


[Site "https://www.chess.com"]

[Event "Titled Tuesday Blitz August 08 Early 2023"]
[White "Carlsen, Magnus"]
[Black "Kushko, Dmitriy"]
[WhiteFideId "1503014"]
[BlackFideId "14162261"]
[WhiteElo "3255"]
[BlackElo "2844"]
[Result "1-0"]
[Round "4"]
[TimeControl "180+1"]
[Date "2023.08.08"]
[WhiteClock "0:00:56"]
[BlackClock "0:00:00"]
[Board "1"]

1. e4 {[%clk 0:03:00]}  g6 {[%clk 0:03:00]} 2. d4 {[%clk 0:02:46]}  Bg7 {[%clk 0:03:00]} 3. Nc3 {[%clk 0:02:44]}  d6 {[%clk 0:03:00]} 4. f4 {[%clk 0:02:43]}  Nf6 {[%clk 0:02:59]} 5. Bd3 {[%clk 0:02:42]}  Nc6 {[%clk 0:02:59]} 6. Nf3 {[%clk 0:02:40]}  Bg4 {[%clk 0:02:59]} 7. Be2 {[%clk 0:02:40]}  Bxf3 {[%clk 0:02:40]} 8. Bxf3 {[%clk 0:02:40]}  e5 {[%clk 0:02:40]} 9. fxe5 {[%clk 0:02:37]}  dxe5 {[%clk 0:02:40]} 10. d5 {[%clk 0:02:38]}  Nd4 {[%clk 0:02:40]} 11. O-O {[%clk 0:02:39]}  c6 {[%clk 0:02:35]} 12. Kh1 {[%clk 0:02:32]}  O-O {[%clk 0:02:33]} 13. Be3 {[%clk 0:02:26]}  cxd5 {[%clk 0:02:31]} 14. Bg5 {[%clk 0:02:26]}  h6 {[%clk 0:01:58]} 15. Bxf6 {[%clk 0:02:26]}  Qxf6 {[%clk 0:01:57]} 16. Nxd5 {[%clk 0:02:27]}  Qd8 {[%clk 0:01:53]} 17. c3 {[%clk 0:02:27]}  Ne6 {[%clk 0:01:49]} 18. Be2 {[%clk 0:02:28]}  Rc8 {[%clk 0:01:36]} 19. Qa4 {[%clk 0:02:23]}  Nc5 {[%clk 0:01:30]} 20. Qxa7 {[%clk 0:02:22]}  Nxe4 {[%clk 0:01:21]} 21. Rad1 {[%clk 0:02:22]}  Nd6 {[%clk 0:00:58]} 22. Qa3 {[%clk 0:02:20]}  Rc6 {[%clk 0:00:53]} 23. Qb4 {[%clk 0:02:20]}  Kh8 {[%clk 0:00:39]} 24. a4 {[%clk 0:02:14]}  f5 {[%clk 0:00:35]} 25. Bb5 {[%clk 0:02:02]}  Nxb5 {[%clk 0:00:32]} 26. Ne7 {[%clk 0:02:00]}  Rd6 {[%clk 0:00:16]} 27. Nxg6+ {[%clk 0:01:59]}  Kg8 {[%clk 0:00:13]} 28. Qb3+ {[%clk 0:01:47]}  Rf7 {[%clk 0:00:11]} 29. axb5 {[%clk 0:01:37]}  f4 {[%clk 0:00:07]} 30. Qc2 {[%clk 0:01:22]}  Rfd7 {[%clk 0:00:06]} 31. Rxd6 {[%clk 0:01:10]}  Rxd6 {[%clk 0:00:06]} 32. h4 {[%clk 0:00:59]}  Rd2 {[%clk 0:00:05]} 33. Qf5 {[%clk 0:00:55]}  Rd1 {[%clk 0:00:04]} 34. Rxd1 {[%clk 0:00:55]}  Qxd1+ {[%clk 0:00:05]} 35. Kh2 {[%clk 0:00:55]}  Qe2 {[%clk 0:00:03]} 36. Ne7+ {[%clk 0:00:55]}  Kh8 {[%clk 0:00:00]} 37. Qc8+ {[%clk 0:00:56]} 1-0


[Site "https://www.chess.com"]

[Event "Titled Tuesday Blitz August 08 Early 2023"]
[White "Lazavik, Denis"]
[Black "Pakleza, Zbigniew"]
[WhiteFideId "13515110"]
[BlackFideId "1119290"]
[WhiteElo "3042"]
[BlackElo "2826"]
[Result "1-0"]
[Round "4"]
[TimeControl "180+1"]
[Date "2023.08.08"]
[WhiteClock "0:00:06"]
[BlackClock "0:00:02"]
[Board "6"]

1. d4 {[%clk 0:03:00]}  d6 {[%clk 0:02:58]} 2. Nf3 {[%clk 0:03:00]}  Bg4 {[%clk 0:02:58]} 3. e4 {[%clk 0:02:59]}  Nf6 {[%clk 0:02:58]} 4. Nc3 {[%clk 0:02:59]}  e6 {[%clk 0:02:59]} 5. h3 {[%clk 0:02:59]}  Bh5 {[%clk 0:02:59]} 6. Qe2 {[%clk 0:02:59]}  c6 {[%clk 0:02:58]} 7. g4 {[%clk 0:02:59]}  Bg6 {[%clk 0:02:58]} 8. h4 {[%clk 0:02:56]}  h5 {[%clk 0:02:57]} 9. g5 {[%clk 0:02:54]}  Nfd7 {[%clk 0:02:57]} 10. d5 {[%clk 0:02:49]}  cxd5 {[%clk 0:02:57]} 11. exd5 {[%clk 0:02:50]}  e5 {[%clk 0:02:58]} 12. Bh3 {[%clk 0:02:49]}  Be7 {[%clk 0:02:58]} 13. O-O {[%clk 0:02:49]}  Na6 {[%clk 0:02:51]} 14. Be3 {[%clk 0:02:48]}  O-O {[%clk 0:02:51]} 15. Ne1 {[%clk 0:02:48]}  Nac5 {[%clk 0:02:30]} 16. Ng2 {[%clk 0:02:47]}  f5 {[%clk 0:02:11]} 17. f4 {[%clk 0:02:43]}  Rc8 {[%clk 0:01:55]} 18. Rad1 {[%clk 0:02:35]}  e4 {[%clk 0:01:47]} 19. Nb5 {[%clk 0:02:34]}  Qa5 {[%clk 0:01:38]} 20. a3 {[%clk 0:02:11]}  Nd3 {[%clk 0:01:22]} 21. Nxa7 {[%clk 0:01:57]}  Nxb2 {[%clk 0:01:22]} 22. Nxc8 {[%clk 0:01:56]}  Rxc8 {[%clk 0:01:23]} 23. Rb1 {[%clk 0:01:52]}  Qxa3 {[%clk 0:01:20]} 24. Qb5 {[%clk 0:01:30]}  Rxc2 {[%clk 0:00:28]} 25. Qxd7 {[%clk 0:01:27]}  Rxg2+ {[%clk 0:00:17]} 26. Kxg2 {[%clk 0:01:23]}  Nc4 {[%clk 0:00:16]} 27. Bd4 {[%clk 0:01:12]}  Qd3 {[%clk 0:00:09]} 28. Rbd1 {[%clk 0:00:57]}  Qe2+ {[%clk 0:00:08]} 29. Kg1 {[%clk 0:00:52]}  Nd2 {[%clk 0:00:08]} 30. Qxe7 {[%clk 0:00:31]}  Nf3+ {[%clk 0:00:07]} 31. Rxf3 {[%clk 0:00:31]}  Qxd1+ {[%clk 0:00:07]} 32. Rf1 {[%clk 0:00:21]}  Qxd4+ {[%clk 0:00:07]} 33. Kh2 {[%clk 0:00:21]}  Qd2+ {[%clk 0:00:05]} 34. Bg2 {[%clk 0:00:21]}  e3 {[%clk 0:00:05]} 35. Qe6+ {[%clk 0:00:17]}  Kh7 {[%clk 0:00:06]} 36. Rf3 {[%clk 0:00:09]}  e2 {[%clk 0:00:04]} 37. Re3 {[%clk 0:00:10]}  e1=Q {[%clk 0:00:04]} 38. Rxe1 {[%clk 0:00:10]}  Qxf4+ {[%clk 0:00:05]} 39. Kg1 {[%clk 0:00:11]}  Qxh4 {[%clk 0:00:05]} 40. Qe3 {[%clk 0:00:05]}  b5 {[%clk 0:00:02]} 41. Rf1 {[%clk 0:00:04]}  f4 {[%clk 0:00:01]} 42. Qxf4 {[%clk 0:00:05]}  Qxf4 {[%clk 0:00:01]} 43. Rxf4 {[%clk 0:00:05]}  Bd3 {[%clk 0:00:02]} 44. Be4+ {[%clk 0:00:05]}  Bxe4 {[%clk 0:00:02]} 45. Rxe4 {[%clk 0:00:06]} 1-0


[Site "https://www.chess.com"]

[Event "Titled Tuesday Blitz August 08 Early 2023"]
[White "Paravyan, David"]
[Black "Anuj Shrivatri"]
[WhiteFideId "4194985"]
[BlackFideId "35070924"]
[WhiteElo "3029"]
[BlackElo "2824"]
[Result "1-0"]
[Round "4"]
[TimeControl "180+1"]
[Date "2023.08.08"]
[WhiteClock "0:02:21"]
[BlackClock "0:01:13"]
[Board "8"]

1. e4 {[%clk 0:03:00]}  c6 {[%clk 0:02:54]} 2. d4 {[%clk 0:03:00]}  d5 {[%clk 0:02:54]} 3. e5 {[%clk 0:03:00]}  Bf5 {[%clk 0:02:52]} 4. Nf3 {[%clk 0:03:01]}  e6 {[%clk 0:02:49]} 5. Be2 {[%clk 0:03:02]}  Nd7 {[%clk 0:02:41]} 6. O-O {[%clk 0:03:01]}  a5 {[%clk 0:02:42]} 7. Nc3 {[%clk 0:02:59]}  h6 {[%clk 0:02:40]} 8. Rb1 {[%clk 0:02:57]}  Ne7 {[%clk 0:02:38]} 9. a4 {[%clk 0:02:49]}  Bh7 {[%clk 0:02:37]} 10. Bd3 {[%clk 0:02:49]}  Bxd3 {[%clk 0:02:33]} 11. cxd3 {[%clk 0:02:49]}  Ng6 {[%clk 0:02:34]} 12. g3 {[%clk 0:02:48]}  f6 {[%clk 0:02:27]} 13. h4 {[%clk 0:02:45]}  fxe5 {[%clk 0:02:26]} 14. h5 {[%clk 0:02:46]}  Ne7 {[%clk 0:02:21]} 15. Nxe5 {[%clk 0:02:46]}  Nxe5 {[%clk 0:02:18]} 16. dxe5 {[%clk 0:02:47]}  Nf5 {[%clk 0:02:13]} 17. Qg4 {[%clk 0:02:47]}  Qd7 {[%clk 0:02:12]} 18. Ne2 {[%clk 0:02:44]}  Bb4 {[%clk 0:02:04]} 19. Nf4 {[%clk 0:02:39]}  O-O-O {[%clk 0:02:03]} 20. Ng6 {[%clk 0:02:36]}  Rhg8 {[%clk 0:02:02]} 21. Rd1 {[%clk 0:02:35]}  Qf7 {[%clk 0:01:52]} 22. Bd2 {[%clk 0:02:32]}  Bxd2 {[%clk 0:01:48]} 23. Rxd2 {[%clk 0:02:33]}  Ne7 {[%clk 0:01:49]} 24. Nxe7+ {[%clk 0:02:22]}  Qxe7 {[%clk 0:01:49]} 25. b4 {[%clk 0:02:23]}  axb4 {[%clk 0:01:48]} 26. Rxb4 {[%clk 0:02:24]}  Rd7 {[%clk 0:01:19]} 27. Rdb2 {[%clk 0:02:24]}  Rc7 {[%clk 0:01:18]} 28. a5 {[%clk 0:02:22]}  Kd7 {[%clk 0:01:13]} 29. Rxb7 {[%clk 0:02:21]} 1-0


[Site "https://www.chess.com"]